fUSD/lending_fUSD_20240712
["ID","MTS","AMOUNT","RATE_DAILY","PERIOD"]
[331798634,1720765930731,-506.91,0.00014301,2]
[331798635,1720765930742,-625.46,0.00014301,2]
[331798636,1720765930752,-651.67,0.00014301,2]
[331798637,1720765930761,-1301.15,0.00014301,2]
[331798638,1720765930771,-500.0,0.00014301,2]
[331798639,1720765930781,-500.0,0.00014301,2]
[331798640,1720765930792,-618.62,0.00014301,2]
[331798641,1720765930802,-500.0,0.00014301,2]
[331798642,1720765930811,-1182.83,0.00014301,2]
[331798643,1720765930821,-871.11,0.00014301,2]
[331798644,1720765930831,-500.0,0.00014301,2]
[331798645,1720765930841,-886.56,0.00014301,2]
[331798646,1720765930851,-500.0,0.00014301,2]
[331798647,1720765930860,-1085.4,0.00014301,2]
[331798648,1720765930870,-896.6,0.00014301,2]
[331798649,1720765930880,-830.96,0.00014301,2]
[331798650,1720765930890,-674.06,0.00014301,2]
[331798651,1720765930899,-1895.01,0.00014301,2]
[331798652,1720765930909,-1172.9,0.00014301,2]
[331798653,1720765930919,-1660.92,0.00014301,2]
[331798654,1720765930929,-644.5,0.00014301,2]
[331798655,1720765930939,-1467.31,0.00014301,2]
[331798656,1720765930949,-424.94930643,0.00014301,2]
[331798657,1720765930959,-981.49,0.00014301,2]
[331798658,1720765930969,-500.0,0.00014301,2]
[331798659,1720765930979,-1112.45,0.00014301,2]
[331798660,1720765930989,-721.53,0.00014301,2]
[331798661,1720765930999,-233.08370436,0.00014301,2]
[331798662,1720765931009,-773.09,0.00014301,2]
[331798663,1720765931019,-750.22,0.00014301,2]
[331798664,1720765931028,-617.12,0.00014301,2]
[331798665,1720765931038,-1485.55,0.00014301,2]
[331798666,1720765931048,-645.73,0.00014301,2]
[331798667,1720765931058,-609.33,0.00014301,2]
[331798668,1720765931068,-1043.11,0.00014301,2]
[331798669,1720765931078,-577.94,0.00014301,2]
[331798670,1720765931088,-1001.09,0.00014301,2]
[331798671,1720765931098,-572.94,0.00014301,2]
[331798672,1720765931107,-826.26,0.00014301,2]
[331798673,1720765931116,-500.0,0.00014301,2]
[331798674,1720765931126,-863.68,0.00014301,2]
[331798675,1720765931136,-978.71,0.00014301,2]
[331798676,1720765931146,-927.14,0.00014301,2]
[331798677,1720765931156,-1033.49,0.00014301,2]
[331798678,1720765931166,-500.0,0.00014301,2]
[331798679,1720765931176,-500.0,0.00014301,2]
[331798680,1720765931187,-584.99,0.00014301,2]
[331798681,1720765931198,-1551.06,0.00014301,2]
[331798682,1720765931207,-924.22,0.00014301,2]
[331798683,1720765931218,-936.64,0.00014301,2]
[331798684,1720765931227,-500.0,0.00014301,2]
[331798685,1720765931238,-500.0,0.00014301,2]
[331798686,1720765931248,-583.16,0.00014301,2]
[331798687,1720765931258,-1266.54,0.00014301,2]
[331798688,1720765931267,-1145.72,0.00014301,2]
[331798689,1720765931276,-500.0,0.00014301,2]
[331798690,1720765931286,-1072.75,0.00014301,2]
[331798691,1720765931296,-628.89,0.00014301,2]
[331798692,1720765931306,-882.64,0.00014301,2]
[331798693,1720765931316,-908.15,0.00014301,2]
[331798694,1720765931325,-617.45,0.00014301,2]
[331798695,1720765931335,-500.0,0.00014301,2]
[331798696,1720765931345,-597.8,0.00014301,2]
[331798697,1720765931356,-322.76,0.00014301,2]
[331798698,1720765931365,-1413.12,0.00014301,2]
[331798699,1720765931374,-684.65,0.00014301,2]
[331798700,1720765931384,-1269.4,0.00014301,2]
[331798701,1720765931394,-1009.57,0.00014301,2]
[331798702,1720765931403,-820.34,0.00014301,2]
[331798703,1720765931413,-570.33,0.00014301,2]
[331798704,1720765931422,-751.75,0.00014301,2]
[331798705,1720765931432,-500.0,0.00014301,2]
[331798706,1720765931441,-500.0,0.00014301,2]
[331798707,1720765931451,-1287.67,0.00014301,2]
[331798708,1720765931460,-922.77,0.00014301,2]
[331798709,1720765931472,-500.0,0.00014301,2]
[331798710,1720765931482,-1345.39,0.00014301,2]
[331798711,1720765931491,-649.45,0.00014301,2]
[331798712,1720765931500,-536.18,0.00014301,2]
[331798713,1720765931513,-500.0,0.00014301,2]
[331798714,1720765931522,-895.96,0.00014301,2]
[331798715,1720765931694,-1632.41,0.00014301,2]
[331798716,1720765931704,-566.55,0.00014301,2]
[331798717,1720765931715,-729.38,0.00014301,2]
[331798718,1720765931725,-500.0,0.00014301,2]
[331798719,1720765931735,-500.0,0.00014301,2]
[331798720,1720765931744,-1661.47,0.00014301,2]
[331798721,1720765931755,-1622.68,0.00014301,2]
[331798722,1720765931765,-1461.03,0.00014301,2]
[331798723,1720765931775,-932.1,0.00014301,2]
[331798724,1720765931785,-600.18,0.00014301,2]
[331798725,1720765931794,-500.0,0.00014301,2]
[331798726,1720765931804,-652.76,0.00014301,2]
[331798727,1720765931814,-590.79,0.00014301,2]
[331798728,1720765931823,-649.76,0.00014301,2]
[331798729,1720765931833,-562.94,0.00014301,2]
[331798730,1720765931845,-500.0,0.00014301,2]
[331798731,1720765931855,-500.0,0.00014301,2]
[331798732,1720765931866,-511.55,0.00014301,2]
[331798733,1720765931876,-682.84,0.00014301,2]
[331798734,1720765931886,-500.0,0.00014301,2]
[331798735,1720765931896,-913.11,0.00014301,2]
[331798736,1720765931906,-500.0,0.00014301,2]
[331798737,1720765931916,-557.92,0.00014301,2]
[331798738,1720765931926,-500.0,0.00014301,2]
[331798739,1720765931936,-665.1,0.00014301,2]
[331798740,1720765931946,-500.0,0.00014301,2]
[331798741,1720765931957,-647.57,0.00014301,2]
[331798742,1720765931969,-655.14,0.00014301,2]
[331798743,1720765931979,-1070.59,0.00014301,2]
[331798744,1720765931988,-500.0,0.00014301,2]
[331798745,1720765931998,-500.0,0.00014301,2]
[331798746,1720765932008,-549.77,0.00014301,2]
[331798747,1720765932018,-955.34,0.00014301,2]
[331798748,1720765932027,-500.0,0.00014301,2]
[331798749,1720765932037,-198.04,0.00014301,2]
[331798750,1720765932046,-500.0,0.00014301,2]
[331798751,1720765932056,-572.55,0.00014301,2]
[331798752,1720765932066,-1087.88,0.00014301,2]
[331798753,1720765932076,-924.38,0.00014301,2]
[331798754,1720765932086,-552.48,0.00014301,2]
[331798755,1720765932095,-895.76,0.00014301,2]
[331798756,1720765932105,-877.72,0.00014301,2]
[331798757,1720765932115,-811.35,0.00014301,2]
[331798758,1720765932124,-701.46,0.00014301,2]
[331798759,1720765932134,-607.45451396,0.00014301,2]
[331798760,1720765932144,-943.64,0.00014301,2]
[331798761,1720765932154,-500.0,0.00014301,2]
[331798762,1720765932164,-535.3,0.00014301,2]
[331798763,1720765932174,-951.0,0.00014301,2]
[331798764,1720765932183,-533.99,0.00014301,2]
[331798765,1720765932193,-500.0,0.00014301,2]
[331798766,1720765932203,-691.79,0.00014301,2]
[331798767,1720765932214,-500.0,0.00014301,2]
[331798768,1720765932224,-749.0,0.00014301,2]
[331798769,1720765932233,-646.61,0.00014301,2]
[331798770,1720765932243,-1153.39,0.00014301,2]
[331798771,1720765932253,-828.98,0.00014301,2]
[331798772,1720765932263,-500.0,0.00014301,2]
[331798773,1720765932273,-797.92,0.00014301,2]
[331798774,1720765932282,-678.2,0.00014301,2]
[331798775,1720765932291,-500.0,0.00014301,2]
[331798776,1720765932301,-742.09,0.00014301,2]
[331798777,1720765932312,-925.55,0.00014301,2]
[331798778,1720765932321,-718.26,0.00014301,2]
[331798779,1720765932330,-660.22,0.00014301,2]
[331798780,1720765932340,-685.66,0.00014301,2]
[331798781,1720765932349,-616.92,0.00014301,2]
[331798782,1720765932359,-626.69,0.00014301,2]
[331798783,1720765932370,-578.66,0.00014301,2]
[331798784,1720765932380,-1182.27,0.00014301,2]
[331798785,1720765932389,-751.88,0.00014301,2]
[331798786,1720765932399,-402.68480741,0.00014301,2]
[331798787,1720765932410,-788.87,0.00014301,2]
[331798788,1720765932420,-589.96,0.00014301,2]
[331798789,1720765932430,-1518.85,0.00014301,2]
[331798790,1720765932440,-500.0,0.00014301,2]
[331798791,1720765932450,-863.12,0.00014301,2]
[331798792,1720765932460,-500.0,0.00014301,2]
[331798793,1720765932471,-765.3,0.00014301,2]
[331798794,1720765932480,-1173.86,0.00014301,2]
[331798795,1720765932490,-500.0,0.00014301,2]
[331798796,1720765932500,-714.93,0.00014301,2]
[331798797,1720765932512,-500.0,0.00014301,2]
[331798798,1720765932522,-500.0,0.00014301,2]
[331798799,1720765932531,-889.91,0.00014301,2]
[331798800,1720765932541,-500.0,0.00014301,2]
[331798801,1720765932551,-797.27,0.00014301,2]
[331798802,1720765932561,-500.0,0.00014301,2]
[331798803,1720765932571,-508.63,0.00014301,2]
[331798804,1720765932581,-500.0,0.00014301,2]
[331798805,1720765932591,-1002.89,0.00014301,2]
[331798806,1720765932601,-512.8,0.00014301,2]
[331798807,1720765932611,-905.0,0.00014301,2]
[331798808,1720765932621,-500.0,0.00014301,2]
[331798809,1720765932630,-500.0,0.00014301,2]
[331798810,1720765932639,-500.0,0.00014301,2]
[331798811,1720765932648,-500.0,0.00014301,2]
[331798812,1720765932658,-504.61,0.00014301,2]
[331798813,1720765932668,-500.0,0.00014301,2]
[331798814,1720765932678,-998.09,0.00014301,2]
[331798815,1720765932688,-1181.8,0.00014301,2]
[331798816,1720765932697,-500.0,0.00014301,2]
[331798817,1720765932707,-1692.88,0.00014301,2]
[331798818,1720765932718,-500.0,0.00014301,2]
[331798819,1720765932727,-806.67,0.00014301,2]
[331798820,1720765932737,-1115.55,0.00014301,2]
[331798821,1720765932747,-1111.86,0.00014301,2]
[331798822,1720765932756,-500.0,0.00014301,2]
[331798823,1720765932765,-1152.37,0.00014301,2]
[331798824,1720765932776,-500.0,0.00014301,2]
[331798825,1720765932786,-500.0,0.00014301,2]
[331798826,1720765932795,-500.0,0.00014301,2]
[331798827,1720765932805,-1099.21,0.00014301,2]
[331798828,1720765932814,-500.0,0.00014301,2]
[331798829,1720765932824,-500.0,0.00014301,2]
[331798830,1720765932835,-500.0,0.00014301,2]
[331798831,1720765932846,-958.58,0.00014301,2]
[331798832,1720765932856,-301.44526996,0.00014301,2]
[331798833,1720765932865,-1435.54,0.00014301,2]
[331798834,1720765932875,-500.0,0.00014301,2]
[331798835,1720765932885,-933.39,0.00014301,2]
[331798836,1720765932895,-500.0,0.00014301,2]
[331798837,1720765932916,-885.22,0.00014301,2]
[331798838,1720765932933,-525.55,0.00014301,2]
[331798839,1720765932952,-578.47,0.00014301,2]
[331798840,1720765932975,-585.1,0.00014301,2]
[331798841,1720765932994,-768.43,0.00014301,2]
[331798842,1720765933014,-500.0,0.00014301,2]
[331798843,1720765933030,-1131.03,0.00014301,2]
[331798844,1720765933046,-500.66,0.00014301,2]
[331798845,1720765933065,-1387.16,0.00014301,2]
[331798846,1720765933086,-769.71,0.00014301,2]
[331798847,1720765933100,-929.61,0.00014301,2]
[331798848,1720765933119,-500.0,0.00014301,2]
[331798849,1720765933136,-1195.55,0.00014301,2]
[331798850,1720765933155,-1164.92,0.00014301,2]
[331798851,1720765933172,-592.67,0.00014301,2]
[331798852,1720765933187,-832.05,0.00014301,2]
[331798853,1720765933203,-1157.39,0.00014301,2]
[331798854,1720765933219,-965.25,0.00014301,2]
[331798855,1720765933235,-1057.96,0.00014301,2]
[331798856,1720765933250,-500.0,0.00014301,2]
[331798857,1720765933266,-663.73,0.00014301,2]
[331798858,1720765933281,-500.0,0.00014301,2]
[331798859,1720765933297,-996.83,0.00014301,2]
[331798860,1720765933313,-778.42,0.00014301,2]
[331798861,1720765933328,-500.94,0.00014301,2]
[331798862,1720765933343,-500.0,0.00014301,2]
[331798863,1720765933358,-1011.24,0.00014301,2]
[331798864,1720765933374,-724.27,0.00014301,2]
[331798865,1720765933389,-500.0,0.00014301,2]
[331798866,1720765933404,-500.0,0.00014301,2]
[331798867,1720765933420,-948.7,0.00014301,2]
[331798868,1720765933434,-1338.17,0.00014301,2]
[331798869,1720765933451,-452.45535223,0.00014301,2]
[331798870,1720765933467,-894.67,0.00014301,2]
[331798871,1720765933483,-500.0,0.00014301,2]
[331798872,1720765933500,-691.16,0.00014301,2]
[331798873,1720765933520,-706.91,0.00014301,2]
[331798874,1720765933535,-500.0,0.00014301,2]
[331798875,1720765933550,-500.0,0.00014301,2]
[331798876,1720765933566,-1648.59,0.00014301,2]
[331798877,1720765933585,-579.34,0.00014301,2]
[331798878,1720765933600,-534.75,0.00014301,2]
[331798879,1720765933615,-6673.84,0.00014301,2]
[331798880,1720765933630,-500.0,0.00014301,2]
[331798881,1720765933645,-791.66,0.00014301,2]
[331798882,1720765933660,-868.6,0.00014301,2]
[331798883,1720765933676,-503.87,0.00014301,2]
[331798884,1720765933691,-500.0,0.00014301,2]
[331798885,1720765933706,-493.15,0.00014301,2]
[331798886,1720765933722,-1463.05,0.00014301,2]
[331798887,1720765933737,-500.0,0.00014301,2]
[331798888,1720765933752,-1711.11,0.00014301,2]
[331798889,1720765933768,-500.0,0.00014301,2]
[331798890,1720765933784,-940.12,0.00014301,2]
[331798891,1720765933799,-500.0,0.00014301,2]
[331798892,1720765933814,-500.0,0.00014301,2]
[331798893,1720765933829,-1103.87,0.00014301,2]
[331798894,1720765933844,-838.82,0.00014301,2]
[331798895,1720765933859,-500.0,0.00014301,2]
[331798896,1720765933873,-906.68,0.00014301,2]
[331798897,1720765933888,-774.99,0.00014301,2]
[331798898,1720765933904,-500.0,0.00014301,2]
[331798899,1720765933919,-1003.46,0.00014301,2]
[331798900,1720765933935,-776.49,0.00014301,2]
[331798901,1720765933951,-715.19,0.00014301,2]
[331798902,1720765933968,-2671.99,0.00014301,2]
[331798903,1720765933982,-500.0,0.00014301,2]
[331798904,1720765933998,-811.17,0.00014301,2]
[331798905,1720765934013,-1169.16,0.00014301,2]
[331798906,1720765934028,-804.64,0.00014301,2]
[331798907,1720765934042,-516.06,0.00014301,2]
[331798908,1720765934057,-500.0,0.00014301,2]
[331798909,1720765934073,-1567.42,0.00014301,2]
[331798910,1720765934088,-1123.97,0.00014301,2]
[331798911,1720765934105,-1159.17,0.00014301,2]
[331798912,1720765934120,-7796.51,0.00014301,2]
[331798913,1720765934135,-682.47,0.00014301,2]
[331798914,1720765934151,-884.1,0.00014301,2]
[331798915,1720765934166,-3427.86,0.00014301,2]
[331798916,1720765934181,-761.42,0.00014301,2]
[331798917,1720765934196,-481.73406879,0.00014301,2]
[331798918,1720765934211,-500.0,0.00014301,2]
[331798919,1720765934229,-500.0,0.00014301,2]
[331798920,1720765934243,-2349.61,0.00014301,2]
[331798921,1720765934258,-2824.19,0.00014301,2]
[331798922,1720765934274,-544.06,0.00014301,2]
[331798923,1720765934288,-1413.14,0.00014301,2]
[331798924,1720765934303,-500.0,0.00014301,2]
[331798925,1720765934318,-746.16,0.00014301,2]
[331798926,1720765934333,-568.05,0.00014301,2]
[331798927,1720765934348,-1225.06,0.00014301,2]
[331798928,1720765934361,-1040.64,0.00014301,2]
[331798929,1720765934376,-500.0,0.00014301,2]
[331798930,1720765934391,-945.48,0.00014301,2]
[331798931,1720765934406,-502.01,0.00014301,2]
[331798932,1720765934420,-1864.03,0.00014301,2]
[331798933,1720765934435,-500.0,0.00014301,2]
[331798934,1720765934450,-782.62,0.00014301,2]
[331798935,1720765934467,-3139.48,0.00014301,2]
[331798936,1720765934481,-967.92,0.00014301,2]
[331798937,1720765934496,-817.59,0.00014301,2]
[331798938,1720765934516,-672.02,0.00014301,2]
[331798939,1720765934532,-760.77,0.00014301,2]
[331798940,1720765934547,-500.0,0.00014301,2]
[331798941,1720765934561,-500.0,0.00014301,2]
[331798942,1720765934576,-1369.87,0.00014301,2]
[331798943,1720765934592,-503.52,0.00014301,2]
[331798944,1720765934607,-927.94,0.00014301,2]
[331798945,1720765934621,-510.11,0.00014301,2]
[331798946,1720765934636,-883.29,0.00014301,2]
[331798947,1720765934651,-504.14748924,0.00014301,2]
[331798948,1720765934667,-500.0,0.00014301,2]
[331798949,1720765934682,-703.12,0.00014301,2]
[331798950,1720765934697,-913.43,0.00014301,2]
[331798951,1720765934712,-500.0,0.00014301,2]
[331798952,1720765934735,-1249.82,0.00014301,2]
[331798953,1720765934750,-698.85,0.00014301,2]
[331798954,1720765934764,-500.0,0.00014301,2]
[331798955,1720765934779,-513.61,0.00014301,2]
[331798956,1720765934794,-500.0,0.00014301,2]
[331798957,1720765934809,-500.0,0.00014301,2]
[331798958,1720765935050,-3390.01,0.00014301,2]
[331798959,1720765935060,-522.91,0.00014301,2]
[331798960,1720765935070,-977.7,0.00014301,2]
[331798961,1720765935080,-641.99,0.00014301,2]
[331798962,1720765935090,-760.44,0.00014301,2]
[331798963,1720765935099,-853.13,0.00014301,2]
[331798964,1720765935108,-534.54,0.00014301,2]
[331798965,1720765935118,-167.05516023,0.00014304,2]
[331798966,1720765935128,-158.92801915,0.00014329,2]
[331798967,1720765935137,-200.0,0.00014333,2]
[331798968,1720765935147,-154.91092166,0.00014333,2]
[331798969,1720765935157,-500.0,0.00014356,2]
[331798970,1720765935167,-500.0,0.00014356,2]
[331798971,1720765935177,-500.0,0.00014356,2]
[331798972,1720765935187,-500.0,0.00014356,2]
[331798973,1720765935196,-500.0,0.00014356,2]
[331798974,1720765935206,-500.0,0.00014356,2]
[331798975,1720765935219,-500.0,0.00014356,2]
[331798976,1720765935229,-600.13,0.00014356,2]
[331798977,1720765935238,-500.0,0.00014356,2]
[331798978,1720765935248,-533.46,0.00014356,2]
[331798979,1720765935258,-500.0,0.00014356,2]
[331798980,1720765935268,-547.29,0.00014356,2]
[331798981,1720765935278,-527.94,0.00014356,2]
[331798982,1720765935288,-500.0,0.00014356,2]
[331798983,1720765935298,-500.0,0.00014356,2]
[331798984,1720765935307,-829.62,0.00014356,2]
[331798985,1720765935317,-678.42,0.00014356,2]
[331798986,1720765935327,-500.0,0.00014356,2]
[331798987,1720765935337,-500.0,0.00014356,2]
[331798988,1720765935347,-500.0,0.00014356,2]
[331798989,1720765935356,-1078.13,0.00014356,2]
[331798990,1720765935365,-599.97,0.00014356,2]
[331798991,1720765935375,-572.91,0.00014356,2]
[331798992,1720765935384,-289.94085235,0.00014356,2]
[331798993,1720765935394,-500.0,0.00014356,2]
[331798994,1720765935403,-500.0,0.00014356,2]
[331798995,1720765935413,-541.87,0.00014356,2]
[331798996,1720765935422,-561.01,0.00014356,2]
[331798997,1720765935431,-500.0,0.00014356,2]
[331798998,1720765935441,-526.37,0.00014356,2]
[331798999,1720765935451,-500.0,0.00014356,2]
[331799000,1720765935462,-658.35,0.00014356,2]
[331799001,1720765935475,-597.81,0.00014356,2]
[331799002,1720765935485,-665.34,0.00014356,2]
[331799003,1720765935494,-879.54,0.00014356,2]
[331799004,1720765935504,-500.0,0.00014356,2]
[331799005,1720765935516,-1042.83,0.00014356,2]
[331799006,1720765935526,-500.0,0.00014356,2]
[331799007,1720765935535,-500.0,0.00014356,2]
[331799008,1720765935544,-801.96,0.00014356,2]
[331799009,1720765935555,-676.83,0.00014356,2]
[331799010,1720765935564,-576.46,0.00014356,2]
[331799011,1720765935573,-679.71,0.00014356,2]
[331799012,1720765935582,-699.82,0.00014356,2]
[331799013,1720765935592,-902.64,0.00014356,2]
[331799014,1720765935602,-171.88062815,0.00014356,2]
[331799015,1720765935617,-500.0,0.00014356,2]
[331799016,1720765935627,-969.66,0.00014356,2]
[331799017,1720765935637,-1386.9,0.00014356,2]
[331799018,1720765935647,-500.0,0.00014356,2]
[331799019,1720765935658,-500.0,0.00014356,2]
[331799020,1720765935667,-832.86,0.00014356,2]
[331799021,1720765935676,-1142.56,0.00014356,2]
[331799022,1720765935685,-584.03,0.00014356,2]
[331799023,1720765935695,-678.02,0.00014356,2]
[331799024,1720765935704,-965.58,0.00014356,2]
[331799025,1720765935713,-980.86,0.00014356,2]
[331799026,1720765935725,-500.0,0.00014356,2]
[331799027,1720765935734,-500.0,0.00014356,2]
[331799028,1720765935744,-625.22,0.00014356,2]
[331799029,1720765935753,-500.0,0.00014356,2]
[331799030,1720765935762,-1043.71,0.00014356,2]
[331799031,1720765935772,-500.0,0.00014356,2]
[331799032,1720765935781,-1095.96,0.00014356,2]
[331799033,1720765935790,-663.07,0.00014356,2]
[331799034,1720765935800,-500.0,0.00014356,2]
[331799035,1720765935810,-1311.76,0.00014356,2]
[331799036,1720765935820,-500.0,0.00014356,2]
[331799037,1720765935829,-1064.74,0.00014356,2]
[331799038,1720765935839,-500.0,0.00014356,2]
[331799039,1720765935849,-500.0,0.00014356,2]
[331799040,1720765935858,-1453.03,0.00014356,2]
[331799041,1720765935867,-506.91,0.00014356,2]
[331799042,1720765935877,-625.46,0.00014356,2]
[331799043,1720765935887,-651.67,0.00014356,2]
[331799044,1720765935896,-1301.15,0.00014356,2]
[331799045,1720765935911,-356.57,0.00014356,2]
[331799046,1720765935921,-275.96905971,0.00014356,2]
[331799047,1720765935931,-618.62,0.00014356,2]
[331799048,1720765935941,-500.0,0.00014356,2]
[331799049,1720765935950,-1182.83,0.00014356,2]
[331799050,1720765935961,-871.11,0.00014356,2]
[331799051,1720765935972,-500.0,0.00014356,2]
[331799052,1720765935981,-886.56,0.00014356,2]
[331799053,1720765935990,-500.0,0.00014356,2]
[331799054,1720765935999,-1085.4,0.00014356,2]
[331799055,1720765936007,-896.6,0.00014356,2]
[331799056,1720765936017,-830.96,0.00014356,2]
[331799057,1720765936026,-674.06,0.00014356,2]
[331799058,1720765936036,-1895.01,0.00014356,2]
[331799059,1720765936045,-1172.9,0.00014356,2]
[331799060,1720765936054,-1660.92,0.00014356,2]
[331799061,1720765936064,-644.5,0.00014356,2]
[331799062,1720765936074,-1467.31,0.00014356,2]
[331799063,1720765936083,-981.49,0.00014356,2]
[331799064,1720765936092,-500.0,0.00014356,2]
[331799065,1720765936101,-1112.45,0.00014356,2]
[331799066,1720765936111,-721.53,0.00014356,2]
[331799067,1720765936121,-773.09,0.00014356,2]
[331799068,1720765936130,-750.22,0.00014356,2]
[331799069,1720765936140,-617.12,0.00014356,2]
[331799070,1720765936149,-1485.55,0.00014356,2]
[331799071,1720765936159,-645.73,0.00014356,2]
[331799072,1720765936169,-609.33,0.00014356,2]
[331799073,1720765936178,-1043.11,0.00014356,2]
[331799074,1720765936188,-577.94,0.00014356,2]
[331799075,1720765936198,-1001.09,0.00014356,2]
[331799076,1720765936207,-572.94,0.00014356,2]
[331799077,1720765936218,-826.26,0.00014356,2]
[331799078,1720765936228,-500.0,0.00014356,2]
[331799079,1720765936237,-863.68,0.00014356,2]
[331799080,1720765936246,-978.71,0.00014356,2]
[331799081,1720765936255,-927.14,0.00014356,2]
[331799082,1720765936265,-1033.49,0.00014356,2]
[331799083,1720765936274,-500.0,0.00014356,2]
[331799084,1720765936284,-500.0,0.00014356,2]
[331799085,1720765936294,-584.99,0.00014356,2]
[331799086,1720765936303,-1551.06,0.00014356,2]
[331799087,1720765936313,-924.22,0.00014356,2]
[331799088,1720765936322,-936.64,0.00014356,2]
[331799089,1720765936331,-645.57172062,0.00014356,2]
[331799090,1720765936341,-500.0,0.00014356,2]
[331799091,1720765936350,-583.16,0.00014356,2]
[331799092,1720765936360,-1266.54,0.00014356,2]
[331799093,1720765936369,-1145.72,0.00014356,2]
[331799094,1720765936378,-231.55365014,0.00014356,2]
[331799095,1720765936388,-628.89,0.00014356,2]
[331799096,1720765936397,-1072.75,0.00014356,2]
[331799097,1720765936407,-882.64,0.00014356,2]
[331799098,1720765936416,-908.15,0.00014356,2]
[331799099,1720765936425,-617.45,0.00014356,2]
[331799100,1720765936434,-500.0,0.00014356,2]
[331799101,1720765936444,-597.8,0.00014356,2]
[331799102,1720765936454,-1413.12,0.00014356,2]
[331799103,1720765936463,-684.65,0.00014356,2]
[331799104,1720765936474,-1269.4,0.00014356,2]
[331799105,1720765936484,-820.34,0.00014356,2]
[331799106,1720765936493,-1009.57,0.00014356,2]
[331799107,1720765936502,-570.33,0.00014356,2]
[331799108,1720765936515,-751.75,0.00014356,2]
[331799109,1720765936524,-500.0,0.00014356,2]
[331799110,1720765936534,-585.6,0.00014356,2]
[331799111,1720765936543,-1287.67,0.00014356,2]
[331799112,1720765936553,-922.77,0.00014356,2]
[331799113,1720765936562,-500.0,0.00014356,2]
[331799114,1720765936572,-1345.39,0.00014356,2]
[331799115,1720765936582,-649.45,0.00014356,2]
[331799116,1720765936593,-536.18,0.00014356,2]
[331799117,1720765936603,-500.0,0.00014356,2]
[331799118,1720765936612,-895.96,0.00014356,2]
[331799119,1720765936621,-1632.41,0.00014356,2]
[331799120,1720765936630,-566.55,0.00014356,2]
[331799121,1720765936640,-729.38,0.00014356,2]
[331799122,1720765936649,-500.0,0.00014356,2]
[331799123,1720765936659,-500.0,0.00014356,2]
[331799124,1720765936669,-1661.47,0.00014356,2]
[331799125,1720765936678,-1622.68,0.00014356,2]
[331799126,1720765936687,-1461.03,0.00014356,2]
[331799127,1720765936697,-932.1,0.00014356,2]
[331799128,1720765936707,-600.18,0.00014356,2]
[331799129,1720765936716,-500.0,0.00014356,2]
[331799130,1720765936727,-652.76,0.00014356,2]
[331799131,1720765936738,-590.79,0.00014356,2]
[331799132,1720765936747,-649.76,0.00014356,2]
[331799133,1720765936756,-562.94,0.00014356,2]